[Event "Titled Tuesday Blitz March 21 Late 2023"]
[White "The_Sherman_Variation"]
[Black "Bullen, Alex"]
[BlackFideId "1801627"]
[WhiteElo "2545"]
[BlackElo "2088"]
[Result "1-0"]
[Round "03"]
[TimeControl "180+2"]
[Date "2023.03.21"]
[WhiteClock "0:00:40"]
[BlackClock "0:00:04"]

1. b3 {[%clk 0:03:00]}  d5 {[%clk 0:02:59]} 2. Bb2 {[%clk 0:03:00]}  Bg4 {[%clk 0:02:59]} 3. h3 {[%clk 0:02:59]}  Bh5 {[%clk 0:02:59]} 4. g4 {[%clk 0:02:58]}  Bg6 {[%clk 0:02:59]} 5. Bg2 {[%clk 0:02:59]}  c6 {[%clk 0:02:57]} 6. Nf3 {[%clk 0:02:57]}  h5 {[%clk 0:02:53]} 7. Ne5 {[%clk 0:02:53]}  Be4 {[%clk 0:02:25]} 8. f3 {[%clk 0:02:45]}  Bh7 {[%clk 0:02:25]} 9. d3 {[%clk 0:02:40]}  e6 {[%clk 0:02:22]} 10. O-O {[%clk 0:02:22]}  hxg4 {[%clk 0:02:21]} 11. fxg4 {[%clk 0:02:22]}  f6 {[%clk 0:02:06]} 12. Nf3 {[%clk 0:02:21]}  e5 {[%clk 0:02:03]} 13. Qe1 {[%clk 0:02:19]}  Nd7 {[%clk 0:01:57]} 14. Nbd2 {[%clk 0:02:15]}  Qb6+ {[%clk 0:01:57]} 15. e3 {[%clk 0:02:03]}  O-O-O {[%clk 0:01:53]} 16. a4 {[%clk 0:02:01]}  a6 {[%clk 0:01:51]} 17. a5 {[%clk 0:02:01]}  Qa7 {[%clk 0:01:51]} 18. c4 {[%clk 0:01:55]}  Bc5 {[%clk 0:01:46]} 19. d4 {[%clk 0:01:53]}  exd4 {[%clk 0:01:45]} 20. exd4 {[%clk 0:01:54]}  Bb4 {[%clk 0:01:42]} 21. c5 {[%clk 0:01:52]}  Nh6 {[%clk 0:01:24]} 22. Qg3 {[%clk 0:01:50]}  Qb8 {[%clk 0:01:18]} 23. Qxb8+ {[%clk 0:01:47]}  Kxb8 {[%clk 0:01:18]} 24. Nb1 {[%clk 0:01:47]}  Rhe8 {[%clk 0:01:12]} 25. Ra4 {[%clk 0:01:32]}  Re2 {[%clk 0:00:55]} 26. Bc1 {[%clk 0:01:32]}  Bxc5 {[%clk 0:00:33]} 27. dxc5 {[%clk 0:01:24]}  Bxb1 {[%clk 0:00:31]} 28. Bf4+ {[%clk 0:01:23]}  Ka7 {[%clk 0:00:27]} 29. Rxb1 {[%clk 0:01:24]}  Nxc5 {[%clk 0:00:26]} 30. Raa1 {[%clk 0:01:21]}  Nd3 {[%clk 0:00:21]} 31. Bg3 {[%clk 0:01:14]}  Rde8 {[%clk 0:00:19]} 32. b4 {[%clk 0:01:09]}  Nf7 {[%clk 0:00:16]} 33. Nd4 {[%clk 0:01:08]}  Rd2 {[%clk 0:00:14]} 34. Bf1 {[%clk 0:01:04]}  Nfe5 {[%clk 0:00:13]} 35. Rd1 {[%clk 0:01:00]}  Rxd1 {[%clk 0:00:13]} 36. Rxd1 {[%clk 0:01:01]}  Nxb4 {[%clk 0:00:12]} 37. Bf2 {[%clk 0:01:01]}  c5 {[%clk 0:00:09]} 38. Nf5 {[%clk 0:00:57]}  d4 {[%clk 0:00:08]} 39. Nxg7 {[%clk 0:00:56]}  Rg8 {[%clk 0:00:07]} 40. Ne6 {[%clk 0:00:55]}  f5 {[%clk 0:00:07]} 41. Nxc5 {[%clk 0:00:54]}  fxg4 {[%clk 0:00:07]} 42. Bxd4 {[%clk 0:00:54]}  Nf3+ {[%clk 0:00:07]} 43. Kf2 {[%clk 0:00:51]}  Nxd4 {[%clk 0:00:06]} 44. Rxd4 {[%clk 0:00:51]}  Nc6 {[%clk 0:00:05]} 45. Rxg4 {[%clk 0:00:49]}  Rf8+ {[%clk 0:00:05]} 46. Ke2 {[%clk 0:00:46]}  Rf5 {[%clk 0:00:05]} 47. Nb3 {[%clk 0:00:44]}  Re5+ {[%clk 0:00:04]} 48. Kd3 {[%clk 0:00:42]}  Nxa5 {[%clk 0:00:04]} 49. Nxa5 {[%clk 0:00:42]}  Rxa5 {[%clk 0:00:04]} 50. h4 {[%clk 0:00:42]}  Ra3+ {[%clk 0:00:03]} 51. Kc2 {[%clk 0:00:42]}  b5 {[%clk 0:00:03]} 52. h5 {[%clk 0:00:41]}  Ra2+ {[%clk 0:00:03]} 53. Kb3 {[%clk 0:00:40]}  Rf2 {[%clk 0:00:04]} 54. Bd3 {[%clk 0:00:39]}  Rf3 {[%clk 0:00:04]} 55. Kc3 {[%clk 0:00:39]}  Kb6 {[%clk 0:00:03]} 56. h6 {[%clk 0:00:39]}  Rh3 {[%clk 0:00:03]} 57. h7 {[%clk 0:00:39]}  a5 {[%clk 0:00:02]} 58. Rg8 {[%clk 0:00:39]}  b4+ {[%clk 0:00:02]} 59. Kc4 {[%clk 0:00:39]}  Rh4+ {[%clk 0:00:02]} 60. Kd5 {[%clk 0:00:38]}  b3 {[%clk 0:00:01]} 61. h8=Q {[%clk 0:00:36]}  Rxh8 {[%clk 0:00:01]} 62. Rxh8 {[%clk 0:00:37]}  b2 {[%clk 0:00:01]} 63. Rb8+ {[%clk 0:00:38]}  Ka7 {[%clk 0:00:02]} 64. Rxb2 {[%clk 0:00:39]}  a4 {[%clk 0:00:02]} 65. Ra2 {[%clk 0:00:39]}  a3 {[%clk 0:00:03]} 66. Rxa3+ {[%clk 0:00:39]}  Kb8 {[%clk 0:00:04]} 67. Kc6 {[%clk 0:00:39]}  Kc8 {[%clk 0:00:04]} 68. Ra8# {[%clk 0:00:40]} 1-0


[Site "https://www.chess.com"]

[Event "Titled Tuesday Blitz March 21 Late 2023"]
[White "Beulen, Marcel"]
[Black "Ambartsumova, Karina"]
[WhiteFideId "1001450"]
[BlackFideId "4166299"]
[WhiteElo "2420"]
[BlackElo "2300"]
[Result "0-1"]
[Round "03"]
[TimeControl "180+2"]
[Date "2023.03.21"]
[WhiteClock "0:00:28"]
[BlackClock "0:00:20"]

1. e4 {[%clk 0:03:00]}  c5 {[%clk 0:02:59]} 2. Nf3 {[%clk 0:02:59]}  e6 {[%clk 0:02:58]} 3. c3 {[%clk 0:02:59]}  d5 {[%clk 0:02:57]} 4. exd5 {[%clk 0:02:59]}  exd5 {[%clk 0:02:58]} 5. d4 {[%clk 0:02:59]}  Nc6 {[%clk 0:02:58]} 6. Be2 {[%clk 0:02:50]}  Bd6 {[%clk 0:02:58]} 7. O-O {[%clk 0:02:50]}  Nge7 {[%clk 0:02:58]} 8. dxc5 {[%clk 0:02:50]}  Bxc5 {[%clk 0:02:58]} 9. Nbd2 {[%clk 0:02:50]}  O-O {[%clk 0:02:58]} 10. Nb3 {[%clk 0:02:50]}  Bd6 {[%clk 0:02:56]} 11. Nbd4 {[%clk 0:02:50]}  h6 {[%clk 0:02:47]} 12. Be3 {[%clk 0:02:48]}  a6 {[%clk 0:02:47]} 13. Re1 {[%clk 0:02:48]}  Bc7 {[%clk 0:02:47]} 14. Qd2 {[%clk 0:02:42]}  Qd6 {[%clk 0:02:46]} 15. Rad1 {[%clk 0:02:36]}  Bg4 {[%clk 0:02:45]} 16. h3 {[%clk 0:02:30]}  Bh5 {[%clk 0:02:22]} 17. Nxc6 {[%clk 0:02:27]}  bxc6 {[%clk 0:02:19]} 18. g3 {[%clk 0:02:09]}  Qd7 {[%clk 0:02:08]} 19. Kg2 {[%clk 0:02:06]}  Bg6 {[%clk 0:01:50]} 20. Nh4 {[%clk 0:01:56]}  Be4+ {[%clk 0:01:49]} 21. Bf3 {[%clk 0:01:45]}  Bh7 {[%clk 0:01:39]} 22. Kh2 {[%clk 0:01:42]}  Rfe8 {[%clk 0:01:12]} 23. Ng2 {[%clk 0:01:08]}  Bf5 {[%clk 0:01:06]} 24. h4 {[%clk 0:01:01]}  Bg4 {[%clk 0:01:01]} 25. Bxg4 {[%clk 0:00:57]}  Qxg4 {[%clk 0:01:02]} 26. Qd4 {[%clk 0:00:49]}  Qf3 {[%clk 0:00:50]} 27. Bf4 {[%clk 0:00:44]}  Nf5 {[%clk 0:00:46]} 28. Qd2 {[%clk 0:00:43]}  Bb6 {[%clk 0:00:38]} 29. Ne3 {[%clk 0:00:41]}  Nxh4 {[%clk 0:00:36]} 30. Qe2 {[%clk 0:00:35]}  g5 {[%clk 0:00:24]} 31. Bd6 {[%clk 0:00:31]}  Qxe2 {[%clk 0:00:20]} 32. Rxe2 {[%clk 0:00:30]}  Nf5 {[%clk 0:00:20]} 33. Rde1 {[%clk 0:00:28]}  Nxd6 {[%clk 0:00:20]} 0-1


[Site "https://www.chess.com"]

[Event "Titled Tuesday Blitz March 21 Late 2023"]
[White "Guzman Moneo, Alberto"]
[Black "Martic, Ivan"]
[WhiteFideId "2209616"]
[BlackFideId "929301"]
[WhiteElo "2157"]
[BlackElo "2360"]
[Result "1-0"]
[Round "03"]
[TimeControl "180+2"]
[Date "2023.03.21"]
[WhiteClock "0:00:42"]
[BlackClock "0:01:06"]

1. e4 {[%clk 0:03:00]}  c5 {[%clk 0:02:54]} 2. Nc3 {[%clk 0:03:00]}  a6 {[%clk 0:02:50]} 3. Nge2 {[%clk 0:02:57]}  e6 {[%clk 0:02:49]} 4. g3 {[%clk 0:02:55]}  d5 {[%clk 0:02:44]} 5. exd5 {[%clk 0:02:51]}  exd5 {[%clk 0:02:45]} 6. d4 {[%clk 0:02:51]}  Nf6 {[%clk 0:02:44]} 7. Bg2 {[%clk 0:02:50]}  cxd4 {[%clk 0:02:42]} 8. Nxd4 {[%clk 0:02:50]}  Bg4 {[%clk 0:02:39]} 9. Bf3 {[%clk 0:02:43]}  Bh3 {[%clk 0:02:33]} 10. Bg5 {[%clk 0:02:42]}  Be7 {[%clk 0:02:27]} 11. Qd3 {[%clk 0:02:36]}  Nc6 {[%clk 0:02:21]} 12. O-O-O {[%clk 0:02:25]}  Ne5 {[%clk 0:02:17]} 13. Qe2 {[%clk 0:02:20]}  Nxf3 {[%clk 0:02:17]} 14. Nxf3 {[%clk 0:02:15]}  O-O {[%clk 0:02:17]} 15. Rhe1 {[%clk 0:02:01]}  Re8 {[%clk 0:02:09]} 16. Bxf6 {[%clk 0:01:51]}  Bxf6 {[%clk 0:02:10]} 17. Qxe8+ {[%clk 0:01:50]}  Qxe8 {[%clk 0:02:10]} 18. Rxe8+ {[%clk 0:01:50]}  Rxe8 {[%clk 0:02:11]} 19. Nxd5 {[%clk 0:01:51]}  Bd8 {[%clk 0:02:00]} 20. Ne3 {[%clk 0:01:45]}  h6 {[%clk 0:01:55]} 21. Nd4 {[%clk 0:01:40]}  Bg5 {[%clk 0:01:47]} 22. Rd3 {[%clk 0:01:37]}  h5 {[%clk 0:01:42]} 23. f4 {[%clk 0:01:34]}  Bf6 {[%clk 0:01:42]} 24. c3 {[%clk 0:01:26]}  g6 {[%clk 0:01:39]} 25. Kd2 {[%clk 0:01:23]}  b5 {[%clk 0:01:32]} 26. Nd5 {[%clk 0:01:17]}  Bd8 {[%clk 0:01:30]} 27. Re3 {[%clk 0:01:15]}  Rxe3 {[%clk 0:01:25]} 28. Kxe3 {[%clk 0:01:13]}  Bd7 {[%clk 0:01:24]} 29. b4 {[%clk 0:01:06]}  f6 {[%clk 0:01:25]} 30. Kd3 {[%clk 0:01:02]}  Kf7 {[%clk 0:01:25]} 31. Nb3 {[%clk 0:01:02]}  Be6 {[%clk 0:01:20]} 32. Ne3 {[%clk 0:00:59]}  Bb6 {[%clk 0:01:16]} 33. Nc1 {[%clk 0:00:50]}  g5 {[%clk 0:01:14]} 34. fxg5 {[%clk 0:00:49]}  fxg5 {[%clk 0:01:15]} 35. a3 {[%clk 0:00:49]}  Kf6 {[%clk 0:01:11]} 36. Ne2 {[%clk 0:00:49]}  Ke5 {[%clk 0:01:10]} 37. Nd4 {[%clk 0:00:48]}  Bd7 {[%clk 0:01:10]} 38. Nf3+ {[%clk 0:00:43]}  Kf6 {[%clk 0:01:08]} 39. Nd5+ {[%clk 0:00:43]}  Kf5 {[%clk 0:01:05]} 40. Nxb6 {[%clk 0:00:43]}  Bc6 {[%clk 0:01:06]} 41. Nd4+ {[%clk 0:00:42]} 1-0


[Site "https://www.chess.com"]

[Event "Titled Tuesday Blitz March 21 Late 2023"]
[White "TigranHH"]
[Black "Bilan, Danila"]
[BlackFideId "24161918"]
[WhiteElo "2295"]
[BlackElo "2182"]
[Result "1-0"]
[Round "03"]
[TimeControl "180+2"]
[Date "2023.03.21"]
[WhiteClock "0:00:50"]
[BlackClock "0:00:06"]

1. d4 {[%clk 0:02:57]}  d5 {[%clk 0:02:50]} 2. c4 {[%clk 0:02:56]}  c6 {[%clk 0:02:51]} 3. Nc3 {[%clk 0:02:57]}  Nf6 {[%clk 0:02:51]} 4. e3 {[%clk 0:02:57]}  e6 {[%clk 0:02:51]} 5. Nf3 {[%clk 0:02:57]}  Nbd7 {[%clk 0:02:51]} 6. Bd3 {[%clk 0:02:57]}  Bd6 {[%clk 0:02:50]} 7. O-O {[%clk 0:02:56]}  O-O {[%clk 0:02:48]} 8. e4 {[%clk 0:02:56]}  dxc4 {[%clk 0:02:47]} 9. Bxc4 {[%clk 0:02:57]}  e5 {[%clk 0:02:48]} 10. Bg5 {[%clk 0:02:56]}  exd4 {[%clk 0:02:36]} 11. Qxd4 {[%clk 0:02:55]}  Qc7 {[%clk 0:02:33]} 12. Bxf6 {[%clk 0:02:40]}  gxf6 {[%clk 0:02:29]} 13. Rad1 {[%clk 0:02:32]}  Bc5 {[%clk 0:02:05]} 14. Qd2 {[%clk 0:02:33]}  Ne5 {[%clk 0:02:05]} 15. Be2 {[%clk 0:02:21]}  Be6 {[%clk 0:01:48]} 16. Qf4 {[%clk 0:02:08]}  Nxf3+ {[%clk 0:01:36]} 17. Qxf3 {[%clk 0:02:09]}  Qe5 {[%clk 0:01:33]} 18. Rd2 {[%clk 0:01:54]}  Rad8 {[%clk 0:01:26]} 19. Rfd1 {[%clk 0:01:54]}  Bb6 {[%clk 0:01:17]} 20. a3 {[%clk 0:01:26]}  Rxd2 {[%clk 0:01:14]} 21. Rxd2 {[%clk 0:01:26]}  Rd8 {[%clk 0:01:14]} 22. Rxd8+ {[%clk 0:01:25]}  Bxd8 {[%clk 0:01:15]} 23. Qd3 {[%clk 0:01:25]}  Bb6 {[%clk 0:01:08]} 24. Bf3 {[%clk 0:01:15]}  Bd4 {[%clk 0:01:03]} 25. g3 {[%clk 0:01:08]}  a6 {[%clk 0:00:53]} 26. Kg2 {[%clk 0:01:08]}  c5 {[%clk 0:00:51]} 27. Qd2 {[%clk 0:01:01]}  b5 {[%clk 0:00:48]} 28. Nd5 {[%clk 0:00:55]}  Bxb2 {[%clk 0:00:38]} 29. Ne7+ {[%clk 0:00:50]}  Kg7 {[%clk 0:00:26]} 30. Qd8 {[%clk 0:00:50]}  Bxa3 {[%clk 0:00:06]} 31. Qg8+ {[%clk 0:00:50]}  Kh6 {[%clk 0:00:06]} 32. Qf8+ {[%clk 0:00:50]} 1-0


[Site "https://www.chess.com"]

[Event "Titled Tuesday Blitz March 21 Late 2023"]
[White "Girsh, Daniel"]
[Black "Rose, Felix"]
[WhiteFideId "30949190"]
[BlackFideId "5105722"]
[WhiteElo "2075"]
[BlackElo "2039"]
[Result "1-0"]
[Round "03"]
[TimeControl "180+2"]
[Date "2023.03.21"]
[WhiteClock "0:02:20"]
[BlackClock "0:00:47"]

1. e4 {[%clk 0:03:00]}  e5 {[%clk 0:02:59]} 2. Nf3 {[%clk 0:03:01]}  Nc6 {[%clk 0:02:59]} 3. d4 {[%clk 0:03:01]}  exd4 {[%clk 0:03:00]} 4. Nxd4 {[%clk 0:03:02]}  Nf6 {[%clk 0:03:00]} 5. Nc3 {[%clk 0:03:01]}  Bb4 {[%clk 0:03:00]} 6. Nxc6 {[%clk 0:03:01]}  bxc6 {[%clk 0:03:01]} 7. Bd3 {[%clk 0:03:01]}  d5 {[%clk 0:03:00]} 8. exd5 {[%clk 0:03:01]}  O-O {[%clk 0:03:01]} 9. O-O {[%clk 0:03:01]}  cxd5 {[%clk 0:03:01]} 10. Bg5 {[%clk 0:03:01]}  c6 {[%clk 0:03:00]} 11. Qf3 {[%clk 0:03:01]}  h6 {[%clk 0:03:01]} 12. Bh4 {[%clk 0:02:52]}  Rb8 {[%clk 0:03:01]} 13. Rad1 {[%clk 0:02:51]}  Bd6 {[%clk 0:02:59]} 14. h3 {[%clk 0:02:50]}  Rxb2 {[%clk 0:02:58]} 15. Ne2 {[%clk 0:02:48]}  Rxa2 {[%clk 0:02:51]} 16. Nd4 {[%clk 0:02:44]}  Bd7 {[%clk 0:01:44]} 17. Nf5 {[%clk 0:02:39]}  Bxf5 {[%clk 0:01:43]} 18. Qxf5 {[%clk 0:02:40]}  Qc8 {[%clk 0:01:43]} 19. Qf3 {[%clk 0:02:34]}  Be5 {[%clk 0:01:17]} 20. Rfe1 {[%clk 0:02:33]}  Qc7 {[%clk 0:01:07]} 21. Bxf6 {[%clk 0:02:26]}  gxf6 {[%clk 0:00:55]} 22. Qg4+ {[%clk 0:02:21]}  Kh8 {[%clk 0:00:47]} 23. Qf5 {[%clk 0:02:20]} 1-0


[Site "https://www.chess.com"]

[Event "Titled Tuesday Blitz March 21 Late 2023"]
[White "lluiss"]
[Black "Mazurkiewicz, Michal"]
[BlackFideId "1124943"]
[WhiteElo "2174"]
[BlackElo "2054"]
[Result "0-1"]
[Round "03"]
[TimeControl "180+2"]
[Date "2023.03.21"]
[WhiteClock "0:00:01"]
[BlackClock "0:00:16"]

1. Nf3 {[%clk 0:03:00]}  Nf6 {[%clk 0:02:59]} 2. c4 {[%clk 0:03:00]}  g6 {[%clk 0:02:59]} 3. g3 {[%clk 0:02:59]}  Bg7 {[%clk 0:02:59]} 4. Bg2 {[%clk 0:02:59]}  O-O {[%clk 0:03:00]} 5. O-O {[%clk 0:03:00]}  d6 {[%clk 0:03:01]} 6. d4 {[%clk 0:02:59]}  c5 {[%clk 0:03:01]} 7. Nc3 {[%clk 0:02:59]}  cxd4 {[%clk 0:03:02]} 8. Nxd4 {[%clk 0:02:58]}  Qa5 {[%clk 0:03:03]} 9. e3 {[%clk 0:02:37]}  Nc6 {[%clk 0:03:01]} 10. Nxc6 {[%clk 0:02:33]}  bxc6 {[%clk 0:03:02]} 11. Bxc6 {[%clk 0:02:32]}  Rb8 {[%clk 0:03:03]} 12. Qd2 {[%clk 0:02:22]}  Qc5 {[%clk 0:02:46]} 13. Bg2 {[%clk 0:02:06]}  Qxc4 {[%clk 0:02:46]} 14. b3 {[%clk 0:02:05]}  Qb4 {[%clk 0:02:32]} 15. Bb2 {[%clk 0:02:05]}  Bf5 {[%clk 0:02:23]} 16. Rfd1 {[%clk 0:01:59]}  Rfc8 {[%clk 0:02:15]} 17. e4 {[%clk 0:01:48]}  Bg4 {[%clk 0:01:54]} 18. f3 {[%clk 0:01:31]}  Be6 {[%clk 0:01:54]} 19. Rac1 {[%clk 0:01:22]}  Nd7 {[%clk 0:01:40]} 20. Rc2 {[%clk 0:00:21]}  Ne5 {[%clk 0:01:18]} 21. Rdc1 {[%clk 0:00:20]}  a5 {[%clk 0:00:54]} 22. Qe2 {[%clk 0:00:20]}  h5 {[%clk 0:00:38]} 23. h3 {[%clk 0:00:19]}  Nc6 {[%clk 0:00:36]} 24. Nd5 {[%clk 0:00:09]}  Bxd5 {[%clk 0:00:36]} 25. exd5 {[%clk 0:00:08]}  Bxb2 {[%clk 0:00:36]} 26. Rxb2 {[%clk 0:00:06]}  Nd4 {[%clk 0:00:37]} 27. Rxc8+ {[%clk 0:00:06]}  Rxc8 {[%clk 0:00:37]} 28. Qf2 {[%clk 0:00:06]}  Rc1+ {[%clk 0:00:35]} 29. Kh2 {[%clk 0:00:06]}  Qc3 {[%clk 0:00:31]} 30. Rd2 {[%clk 0:00:06]}  Nf5 {[%clk 0:00:32]} 31. f4 {[%clk 0:00:04]}  h4 {[%clk 0:00:24]} 32. gxh4 {[%clk 0:00:03]}  Qf6 {[%clk 0:00:16]} 33. h5 {[%clk 0:00:03]}  gxh5 {[%clk 0:00:16]} 34. Bf3 {[%clk 0:00:02]}  h4 {[%clk 0:00:16]} 35. Qg2+ {[%clk 0:00:01]}  Ng3 {[%clk 0:00:16]} 0-1


[Site "https://www.chess.com"]

[Event "Titled Tuesday Blitz March 21 Late 2023"]
[White "Battlecruiser_Operational"]
[Black "Araujo Sanchez, Josue"]
[BlackFideId "6416896"]
[WhiteElo "2240"]
[BlackElo "2416"]
[Result "0-1"]
[Round "03"]
[TimeControl "180+2"]
[Date "2023.03.21"]
[WhiteClock "0:00:03"]
[BlackClock "0:00:08"]

1. d4 {[%clk 0:02:57]}  Nf6 {[%clk 0:02:57]} 2. Nf3 {[%clk 0:02:57]}  e6 {[%clk 0:02:47]} 3. g3 {[%clk 0:02:55]}  b6 {[%clk 0:02:44]} 4. Bg2 {[%clk 0:02:55]}  Bb7 {[%clk 0:02:44]} 5. O-O {[%clk 0:02:54]}  Be7 {[%clk 0:02:45]} 6. c4 {[%clk 0:02:54]}  O-O {[%clk 0:02:38]} 7. Nc3 {[%clk 0:02:54]}  d5 {[%clk 0:02:38]} 8. Qb3 {[%clk 0:02:45]}  Nbd7 {[%clk 0:02:33]} 9. Rd1 {[%clk 0:02:42]}  Qc8 {[%clk 0:02:11]} 10. Bf4 {[%clk 0:02:31]}  c5 {[%clk 0:01:56]} 11. cxd5 {[%clk 0:02:29]}  Nxd5 {[%clk 0:01:55]} 12. Nxd5 {[%clk 0:02:29]}  Bxd5 {[%clk 0:01:55]} 13. Qe3 {[%clk 0:02:26]}  Qb7 {[%clk 0:01:54]} 14. Rac1 {[%clk 0:02:15]}  Rac8 {[%clk 0:01:49]} 15. a3 {[%clk 0:02:13]}  a5 {[%clk 0:01:46]} 16. Ne1 {[%clk 0:02:05]}  Nf6 {[%clk 0:01:35]} 17. Bxd5 {[%clk 0:01:58]}  Nxd5 {[%clk 0:01:33]} 18. Qf3 {[%clk 0:01:58]}  cxd4 {[%clk 0:01:33]} 19. Rxc8 {[%clk 0:01:53]}  Rxc8 {[%clk 0:01:32]} 20. Rxd4 {[%clk 0:01:53]}  Bf6 {[%clk 0:01:32]} 21. Rd2 {[%clk 0:01:42]}  Rc1 {[%clk 0:01:22]} 22. Kf1 {[%clk 0:01:42]}  Qc8 {[%clk 0:01:17]} 23. Rxd5 {[%clk 0:01:31]}  Rxe1+ {[%clk 0:01:09]} 24. Kxe1 {[%clk 0:01:32]}  exd5 {[%clk 0:01:09]} 25. Qxd5 {[%clk 0:01:27]}  Bxb2 {[%clk 0:01:08]} 26. a4 {[%clk 0:01:23]}  h6 {[%clk 0:00:59]} 27. Be3 {[%clk 0:01:10]}  Ba3 {[%clk 0:00:49]} 28. Kf1 {[%clk 0:01:08]}  Bc5 {[%clk 0:00:48]} 29. Bxc5 {[%clk 0:00:58]}  bxc5 {[%clk 0:00:49]} 30. Ke1 {[%clk 0:00:52]}  Qe8 {[%clk 0:00:43]} 31. Qc4 {[%clk 0:00:46]}  Qe5 {[%clk 0:00:43]} 32. f4 {[%clk 0:00:44]}  Qa1+ {[%clk 0:00:42]} 33. Kf2 {[%clk 0:00:44]}  Qa3 {[%clk 0:00:43]} 34. Qb5 {[%clk 0:00:41]}  Qb4 {[%clk 0:00:44]} 35. Qe8+ {[%clk 0:00:40]}  Kh7 {[%clk 0:00:44]} 36. Qxf7 {[%clk 0:00:40]}  Qd4+ {[%clk 0:00:42]} 37. Kf3 {[%clk 0:00:38]}  Qxa4 {[%clk 0:00:39]} 38. Qf5+ {[%clk 0:00:38]}  Kh8 {[%clk 0:00:38]} 39. Qc8+ {[%clk 0:00:31]}  Kh7 {[%clk 0:00:37]} 40. Qxc5 {[%clk 0:00:31]}  Qb3+ {[%clk 0:00:36]} 41. e3 {[%clk 0:00:30]}  a4 {[%clk 0:00:27]} 42. Qf5+ {[%clk 0:00:25]}  Kh8 {[%clk 0:00:27]} 43. Qc8+ {[%clk 0:00:25]}  Kh7 {[%clk 0:00:27]} 44. Qf5+ {[%clk 0:00:24]}  Kg8 {[%clk 0:00:28]} 45. Qc8+ {[%clk 0:00:23]}  Kf7 {[%clk 0:00:28]} 46. Qd7+ {[%clk 0:00:21]}  Kf6 {[%clk 0:00:29]} 47. Qd6+ {[%clk 0:00:20]}  Kf7 {[%clk 0:00:26]} 48. Qd7+ {[%clk 0:00:20]}  Kg8 {[%clk 0:00:25]} 49. Qe8+ {[%clk 0:00:18]}  Kh7 {[%clk 0:00:23]} 50. Qe4+ {[%clk 0:00:18]}  Kh8 {[%clk 0:00:18]} 51. Qe8+ {[%clk 0:00:18]}  Kh7 {[%clk 0:00:17]} 52. Qe4+ {[%clk 0:00:18]}  g6 {[%clk 0:00:18]} 53. Qe7+ {[%clk 0:00:18]}  Kg8 {[%clk 0:00:17]} 54. Qe8+ {[%clk 0:00:17]}  Kg7 {[%clk 0:00:17]} 55. Qe7+ {[%clk 0:00:18]}  Qf7 {[%clk 0:00:16]} 56. Qe5+ {[%clk 0:00:17]}  Kh7 {[%clk 0:00:16]} 57. Qa5 {[%clk 0:00:16]}  Qb7+ {[%clk 0:00:13]} 58. e4 {[%clk 0:00:15]}  Qb3+ {[%clk 0:00:13]} 59. Kg4 {[%clk 0:00:13]}  Qd1+ {[%clk 0:00:12]} 60. Kh3 {[%clk 0:00:10]}  Qf1+ {[%clk 0:00:13]} 61. Kh4 {[%clk 0:00:09]}  Qc4 {[%clk 0:00:10]} 62. Qa7+ {[%clk 0:00:07]}  Kg8 {[%clk 0:00:09]} 63. Qa8+ {[%clk 0:00:06]}  Kf7 {[%clk 0:00:10]} 64. e5 {[%clk 0:00:05]}  g5+ {[%clk 0:00:04]} 65. Kh5 {[%clk 0:00:05]}  gxf4 {[%clk 0:00:04]} 66. Qb7+ {[%clk 0:00:04]}  Ke6 {[%clk 0:00:04]} 67. Qb6+ {[%clk 0:00:03]}  Kxe5 {[%clk 0:00:04]} 68. gxf4+ {[%clk 0:00:04]}  Kxf4 {[%clk 0:00:05]} 69. Qxh6+ {[%clk 0:00:03]}  Kf3 {[%clk 0:00:05]} 70. Qf6+ {[%clk 0:00:03]}  Kg2 {[%clk 0:00:05]} 71. h4 {[%clk 0:00:03]}  Qe2+ {[%clk 0:00:03]} 72. Kh6 {[%clk 0:00:03]}  Qe3+ {[%clk 0:00:03]} 73. Qg5+ {[%clk 0:00:03]}  Kf3 {[%clk 0:00:03]} 74. Qxe3+ {[%clk 0:00:02]}  Kxe3 {[%clk 0:00:04]} 75. h5 {[%clk 0:00:03]}  a3 {[%clk 0:00:05]} 76. Kg6 {[%clk 0:00:02]}  a2 {[%clk 0:00:06]} 77. h6 {[%clk 0:00:02]}  a1=Q {[%clk 0:00:07]} 78. h7 {[%clk 0:00:03]}  Qh8 {[%clk 0:00:07]} 79. Kh6 {[%clk 0:00:03]}  Ke4 {[%clk 0:00:08]} 0-1


[Site "https://www.chess.com"]

[Event "Titled Tuesday Blitz March 21 Late 2023"]
[White "Pinheiro, Iung Alicio de O."]
[Black "Vifleemskaia, Svetlana"]
[WhiteFideId "2104350"]
[BlackFideId "4129490"]
[WhiteElo "2283"]
[BlackElo "1930"]
[Result "1-0"]
[Round "03"]
[TimeControl "180+2"]
[Date "2023.03.21"]
[WhiteClock "0:00:22"]
[BlackClock "0:00:04"]

1. e4 {[%clk 0:03:00]}  Nf6 {[%clk 0:02:54]} 2. e5 {[%clk 0:03:00]}  Nd5 {[%clk 0:02:49]} 3. d4 {[%clk 0:03:01]}  e6 {[%clk 0:02:44]} 4. Nf3 {[%clk 0:03:01]}  d6 {[%clk 0:02:44]} 5. c4 {[%clk 0:02:46]}  Nb6 {[%clk 0:02:42]} 6. exd6 {[%clk 0:02:40]}  cxd6 {[%clk 0:02:41]} 7. Nc3 {[%clk 0:02:40]}  d5 {[%clk 0:02:36]} 8. c5 {[%clk 0:02:39]}  N6d7 {[%clk 0:02:36]} 9. Bg5 {[%clk 0:02:34]}  Nf6 {[%clk 0:02:33]} 10. Bd3 {[%clk 0:02:27]}  Be7 {[%clk 0:02:33]} 11. O-O {[%clk 0:02:27]}  O-O {[%clk 0:02:33]} 12. Ne5 {[%clk 0:02:26]}  Nc6 {[%clk 0:02:30]} 13. Nxc6 {[%clk 0:02:08]}  bxc6 {[%clk 0:02:30]} 14. Qc2 {[%clk 0:02:08]}  h6 {[%clk 0:02:28]} 15. Bf4 {[%clk 0:02:06]}  a5 {[%clk 0:02:24]} 16. h3 {[%clk 0:02:01]}  Ba6 {[%clk 0:02:24]} 17. Na4 {[%clk 0:01:54]}  Bxd3 {[%clk 0:02:15]} 18. Qxd3 {[%clk 0:01:54]}  Nd7 {[%clk 0:02:15]} 19. Rfe1 {[%clk 0:01:50]}  Qc8 {[%clk 0:02:04]} 20. Rad1 {[%clk 0:01:46]}  Qb7 {[%clk 0:02:03]} 21. Qg3 {[%clk 0:01:45]}  Kh7 {[%clk 0:02:00]} 22. b3 {[%clk 0:01:44]}  Qb4 {[%clk 0:01:28]} 23. Bd2 {[%clk 0:01:19]}  Qb7 {[%clk 0:01:11]} 24. Bf4 {[%clk 0:01:19]}  Qb4 {[%clk 0:01:10]} 25. Bd6 {[%clk 0:01:19]}  Bf6 {[%clk 0:01:06]} 26. Bxf8 {[%clk 0:01:16]}  Rxf8 {[%clk 0:01:05]} 27. Qd6 {[%clk 0:01:13]}  Qb7 {[%clk 0:01:05]} 28. Nb6 {[%clk 0:01:10]}  Rd8 {[%clk 0:01:04]} 29. Nxd7 {[%clk 0:01:08]}  Rxd7 {[%clk 0:01:04]} 30. Qf4 {[%clk 0:01:08]}  Qb4 {[%clk 0:01:02]} 31. Qd2 {[%clk 0:01:06]}  Rb7 {[%clk 0:00:57]} 32. Qd3+ {[%clk 0:00:57]}  Kg8 {[%clk 0:00:54]} 33. Re2 {[%clk 0:00:47]}  Ra7 {[%clk 0:00:53]} 34. a4 {[%clk 0:00:45]}  Rb7 {[%clk 0:00:51]} 35. Re3 {[%clk 0:00:45]}  Rb8 {[%clk 0:00:47]} 36. Rf3 {[%clk 0:00:45]}  Qb7 {[%clk 0:00:42]} 37. Qe3 {[%clk 0:00:43]}  Qb4 {[%clk 0:00:41]} 38. g3 {[%clk 0:00:41]}  Kf8 {[%clk 0:00:30]} 39. h4 {[%clk 0:00:36]}  Ke7 {[%clk 0:00:30]} 40. Kg2 {[%clk 0:00:37]}  Qa3 {[%clk 0:00:28]} 41. Qf4 {[%clk 0:00:33]}  Rc8 {[%clk 0:00:20]} 42. Qd6+ {[%clk 0:00:31]}  Ke8 {[%clk 0:00:19]} 43. Re1 {[%clk 0:00:32]}  Qb4 {[%clk 0:00:17]} 44. Rxe6+ {[%clk 0:00:28]}  fxe6 {[%clk 0:00:15]} 45. Qxe6+ {[%clk 0:00:28]}  Kd8 {[%clk 0:00:16]} 46. Qd6+ {[%clk 0:00:28]}  Ke8 {[%clk 0:00:16]} 47. Re3+ {[%clk 0:00:28]}  Kf7 {[%clk 0:00:11]} 48. Qe6+ {[%clk 0:00:27]}  Kg6 {[%clk 0:00:11]} 49. h5+ {[%clk 0:00:22]}  Kh7 {[%clk 0:00:08]} 50. Qf5+ {[%clk 0:00:22]}  Kg8 {[%clk 0:00:04]} 51. Qxc8+ {[%clk 0:00:22]} 1-0


[Site "https://www.chess.com"]